[Event "44th Chess Olympiad Open 2022"]
[Site "Chennai"]
[Date "2022.07.30"]
[Round "2.77"]
[White "Tracey, Shaun M"]
[Black "Parsons, Justin"]
[Result "0-1"]
[WhiteElo "1650"]
[BlackElo "1749"]
[Annotator "NA RC"]
[PlyCount "124"]
[EventDate "2022.??.??"]
[TimeControl "60"]

1. e4 {[%emt 0:00:02]} c5 {[%emt 0:00:19]} 2. Nc3 {[%emt 0:00:04]} e6 {[%emt 0:
00:00]} 3. f4 {[%emt 0:01:05]} d5 {[%emt 0:01:11]} 4. Bb5+ {[%emt 0:01:32]} Nc6
{[%emt 0:00:49]} 5. Bxc6+ {[%emt 0:01:10]} bxc6 {[%emt 0:00:27]} 6. d3 {
[%emt 0:02:25]} Nf6 {[%emt 0:03:12]} 7. e5 {[%emt 0:01:52]} Nd7 {[%emt 0:05:54]
} 8. b3 {[%emt 0:05:58]} Be7 {[%emt 0:03:36]} 9. Qg4 {[%emt 0:09:00]} O-O {
[%emt 0:03:01]} 10. Nf3 {[%emt 0:03:01]} Qa5 {[%emt 0:09:46]} 11. Bd2 {[%emt 0:
00:00]} Qc7 {[%emt 0:00:17]} 12. Na4 {[%emt 0:01:52]} Kh8 {[%emt 0:10:24]} 13.
c4 {[%emt 0:00:44]} f6 {[%emt 0:13:10]} 14. Qg3 {[%emt 0:29:43]} Nb6 {[%emt 0:
00:00]} 15. Nb2 {[%emt 0:01:07]} Bd7 {[%emt 0:01:44]} 16. O-O {[%emt 0:02:00]}
Rad8 {[%emt 0:06:29]} 17. Bc3 {[%emt 0:03:48]} d4 {[%emt 0:05:17]} 18. Bd2 {
[%emt 0:02:38]} Be8 {[%emt 0:00:47]} 19. Rae1 {[%emt 0:01:05]} f5 {[%emt 0:00:
00]} 20. Qh3 {[%emt 0:02:05]} Bg6 {[%emt 0:05:13]} 21. Kh1 {[%emt 0:03:37]} Ra8
{[%emt 0:01:50]} 22. Bc1 {[%emt 0:05:45]} Qb7 {[%emt 0:01:25]} 23. Nd2 {
[%emt 0:02:06]} Qa6 {[%emt 0:01:15]} 24. a4 {[%emt 0:00:35]} Qb7 {[%emt 0:00:
00]} 25. Rf3 {[%emt 0:02:11]} Qd7 {[%emt 0:02:02]} 26. Rg1 {[%emt 0:03:41]} Qe8
{[%emt 0:03:17]} 27. Nd1 {[%emt 0:04:17]} Bh5 {[%emt 0:01:47]} 28. Rff1 {
[%emt 0:01:37]} Bg4 {[%emt 0:00:45]} 29. Qg3 {[%emt 0:00:28]} Qh5 {[%emt 0:00:
00]} 30. Qf2 {[%emt 0:00:49]} Be2 {[%emt 0:01:19]} 31. Re1 {[%emt 0:01:03]}
Bxd3 {[%emt 0:00:22]} 32. Nb2 {[%emt 0:02:59]} Bc2 {[%emt 0:00:47]} 33. a5 {
[%emt 0:02:16]} Nd7 {[%emt 0:00:13]} 34. Na4 {[%emt 0:00:17]} Rab8 {[%emt 0:00:
00]} 35. g3 {[%emt 0:02:03]} Bxb3 {[%emt 0:00:30]} 36. Nb2 {[%emt 0:00:29]} Bc2
{[%emt 0:01:51]} 37. Qg2 {[%emt 0:00:22]} Rfc8 {[%emt 0:00:19]} 38. Rgf1 {
[%emt 0:00:57]} Bd8 {[%emt 0:00:21]} 39. a6 {[%emt 0:01:14]} Ba5 {[%emt 0:00:
00]} 40. Rf2 {[%emt 0:00:24]} Bxd2 {[%emt 0:00:46]} 41. Rxd2 {[%emt 0:30:24]}
Be4 {[%emt 0:30:13]} 42. Rxe4 {[%emt 0:00:10]} fxe4 {[%emt 0:00:07]} 43. Qxe4 {
[%emt 0:00:55]} Rb3 {[%emt 0:00:34]} 44. Rd3 {[%emt 0:00:00]} Rb6 {[%emt 0:00:
00]} 45. Kg2 {[%emt 0:00:00]} Rxa6 {[%emt 0:00:00]} 46. h3 {[%emt 0:00:00]} Ra1
{[%emt 0:00:00]} 47. g4 {[%emt 0:00:00]} Qg6 {[%emt 0:00:00]} 48. Qe1 {[%emt 0:
00:00]} Rb8 {[%emt 0:00:00]} 49. Rd2 {[%emt 0:00:00]} Qb1 {[%emt 0:00:00]} 50.
Nd3 {[%emt 0:00:00]} Rb3 {[%emt 0:00:00]} 51. Qe4 {[%emt 0:00:00]} Rxd3 {
[%emt 0:00:00]} 52. Rxd3 {[%emt 0:00:00]} Qxc1 {[%emt 0:00:00]} 53. Kg3 {
[%emt 0:00:00]} Qe1+ {[%emt 0:00:00]} 54. Qxe1 {[%emt 0:00:00]} Rxe1 {[%emt 0:
00:00]} 55. Kh4 {[%emt 0:00:16]} Ra1 {[%emt 0:00:00]} 56. Kh5 {[%emt 0:00:47]}
Kg8 {[%emt 0:00:00]} 57. Rb3 {[%emt 0:00:15]} Kf7 {[%emt 0:00:00]} 58. Rb7 {
[%emt 0:00:15]} Ke7 {[%emt 0:00:00]} 59. f5 {[%emt 0:00:18]} exf5 {[%emt 0:00:
00]} 60. gxf5 {[%emt 0:00:05]} g6+ {[%emt 0:00:00]} 61. fxg6 {[%emt 0:00:57]}
hxg6+ {[%emt 0:00:00]} 62. Kxg6 {[%emt 0:00:12]} Ke6 {[%emt 0:00:00]} 0-1

[Event "44th Chess Olympiad Open 2022"]
[Site "Chennai"]
[Date "2022.07.30"]
[Round "2.77"]
[White "Shaw, Clifford"]
[Black "Blackman, Justin"]
[Result "0-1"]
[WhiteElo "1615"]
[BlackElo "2195"]
[Annotator "ChessBase"]
[PlyCount "78"]
[EventDate "2022.??.??"]
[TimeControl "60"]

1. e4 {[%emt 0:00:01]} c5 {[%emt 0:00:06]} 2. d4 {[%emt 0:00:03]} cxd4 {
[%emt 0:00:06]} 3. c3 {[%emt 0:00:03]} d3 {[%emt 0:00:07]} 4. c4 {[%emt 0:00:
00]} Nc6 {[%emt 0:00:05]} 5. Bxd3 {[%emt 0:00:09]} g6 {[%emt 0:00:12]} 6. Nc3 {
[%emt 0:00:47]} Bg7 {[%emt 0:00:07]} 7. Nge2 {[%emt 0:00:54]} Nf6 {[%emt 0:00:
00]} 8. b3 {[%emt 0:00:45]} d6 {[%emt 0:02:43]} 9. O-O {[%emt 0:01:07]} O-O {
[%emt 0:00:31]} 10. h3 {[%emt 0:00:36]} b6 {[%emt 0:03:57]} 11. Bg5 {[%emt 0:
00:00]} Bb7 {[%emt 0:10:34]} 12. Rc1 {[%emt 0:01:54]} Ne5 {[%emt 0:10:10]} 13.
Bb1 {[%emt 0:00:15]} a6 {[%emt 0:00:59]} 14. Qd2 {[%emt 0:00:16]} Rc8 {[%emt 0:
00:00]} 15. Bh6 {[%emt 0:06:28]} Bxh6 {[%emt 0:05:48]} 16. Qxh6 {[%emt 0:00:03]
} b5 {[%emt 0:01:21]} 17. f4 {[%emt 0:02:00]} Ned7 {[%emt 0:05:39]} 18. Nd5 {
[%emt 0:07:05]} bxc4 {[%emt 0:05:50]} 19. bxc4 {[%emt 0:00:17]} Bxd5 {[%emt 0:
00:00]} 20. exd5 {[%emt 0:00:23]} Qb6+ {[%emt 0:03:17]} 21. Kh1 {[%emt 0:01:51]
} Qb4 {[%emt 0:05:32]} 22. Nd4 {[%emt 0:04:11]} Rxc4 {[%emt 0:06:15]} 23. Nc6 {
[%emt 0:11:46]} Rxc1 {[%emt 0:00:46]} 24. Nxe7+ {[%emt 0:00:10]} Kh8 {[%emt 0:
00:00]} 25. Rxc1 {[%emt 0:00:15]} Qd2 {[%emt 0:06:17]} 26. Rg1 {[%emt 0:01:39]}
Re8 {[%emt 0:02:26]} 27. Nxg6+ {[%emt 0:08:30]} fxg6 {[%emt 0:00:10]} 28. Bxg6
{[%emt 0:00:10]} Re1 {[%emt 0:06:14]} 29. Rxe1 {[%emt 0:04:43]} Qxe1+ {[%emt 0:
00:00]} 30. Kh2 {[%emt 0:00:17]} Qe7 {[%emt 0:01:30]} 31. Bd3 {[%emt 0:04:53]}
a5 {[%emt 0:02:12]} 32. g4 {[%emt 0:01:35]} Nc5 {[%emt 0:02:08]} 33. Bc4 {
[%emt 0:12:13]} Ng8 {[%emt 0:00:30]} 34. Qh5 {[%emt 0:00:45]} Qe4 {[%emt 0:00:
00]} 35. Qf7 {[%emt 0:03:08]} Qxc4 {[%emt 0:00:58]} 36. f5 {[%emt 0:00:30]}
Qf4+ {[%emt 0:00:28]} 37. Kh1 {[%emt 0:00:29]} Ne4 {[%emt 0:00:40]} 38. Qe6 {
[%emt 0:01:07]} Qf1+ {[%emt 0:00:08]} 39. Kh2 {[%emt 0:00:20]} Qf2+ {[%emt 0:
00:00]} 0-1

[Event "44th Chess Olympiad Open 2022"]
[Site "Chennai"]
[Date "2022.07.30"]
[Round "2.77"]
[White "Roachford, Adam"]
[Black "Swaminathan, Laia"]
[Result "1-0"]
[WhiteElo "1443"]
[BlackElo "1460"]
[Annotator "NA"]
[PlyCount "77"]
[EventDate "2022.??.??"]
[TimeControl "60"]

1. e4 {[%emt 0:00:05]} e5 {[%emt 0:00:10]} 2. Nf3 {[%emt 0:00:16]} Nc6 {
[%emt 0:00:12]} 3. Bb5 {[%emt 0:04:18]} a6 {[%emt 0:00:09]} 4. Ba4 {[%emt 0:00:
00]} Nf6 {[%emt 0:00:09]} 5. O-O {[%emt 0:01:35]} Be7 {[%emt 0:00:21]} 6. d3 {
[%emt 0:16:37]} b5 {[%emt 0:01:11]} 7. Bb3 {[%emt 0:00:26]} d6 {[%emt 0:01:43]}
8. h3 {[%emt 0:02:29]} O-O {[%emt 0:01:23]} 9. c3 {[%emt 0:02:49]} Re8 {
[%emt 0:02:49]} 10. Re1 {[%emt 0:11:15]} Bb7 {[%emt 0:05:50]} 11. Ng5 {[%emt 0:
00:00]} d5 {[%emt 0:07:38]} 12. exd5 {[%emt 0:10:10]} Nxd5 {[%emt 0:01:30]} 13.
Qf3 {[%emt 0:01:04]} Bxg5 {[%emt 0:11:34]} 14. Bxd5 {[%emt 0:02:28]} Bxc1 {
[%emt 0:04:27]} 15. Bxf7+ {[%emt 0:02:39]} Kh8 {[%emt 0:00:11]} 16. Bxe8 {
[%emt 0:00:58]} Qxe8 {[%emt 0:00:27]} 17. Rxc1 {[%emt 0:00:13]} Nd4 {[%emt 0:
00:00]} 18. Qe3 {[%emt 0:21:56]} Qg6 {[%emt 0:03:43]} 19. g4 {[%emt 0:02:39]}
Nf3+ {[%emt 0:01:51]} 20. Kf1 {[%emt 0:00:35]} Rd8 {[%emt 0:01:27]} 21. Ke2 {
[%emt 0:05:07]} e4 {[%emt 0:03:21]} 22. d4 {[%emt 0:00:34]} Qe6 {[%emt 0:00:57]
} 23. Nd2 {[%emt 0:00:18]} c5 {[%emt 0:03:00]} 24. Nxf3 {[%emt 0:00:27]} exf3+
{[%emt 0:00:15]} 25. Kd2 {[%emt 0:00:10]} Qf6 {[%emt 0:01:28]} 26. Re1 {
[%emt 0:00:16]} Bc6 {[%emt 0:00:39]} 27. Qe6 {[%emt 0:01:55]} Qf4+ {[%emt 0:00:
00]} 28. Kc2 {[%emt 0:00:52]} Bd5 {[%emt 0:03:50]} 29. Qxd5 {[%emt 0:00:41]}
Qf6 {[%emt 0:02:11]} 30. Qe5 {[%emt 0:00:25]} Qg6+ {[%emt 0:00:42]} 31. Qe4 {
[%emt 0:00:35]} Qf7 {[%emt 0:00:37]} 32. Rad1 {[%emt 0:00:28]} c4 {[%emt 0:00:
00]} 33. d5 {[%emt 0:00:17]} h6 {[%emt 0:01:30]} 34. d6 {[%emt 0:00:06]} h5 {
[%emt 0:07:05]} 35. d7 {[%emt 0:00:10]} hxg4 {[%emt 0:02:33]} 36. Qe8+ {
[%emt 0:00:06]} Rxe8 {[%emt 0:00:20]} 37. dxe8=Q+ {[%emt 0:02:58]} Qxe8 {
[%emt 0:00:14]} 38. Rxe8+ {[%emt 0:00:07]} Kh7 {[%emt 0:00:04]} 39. hxg4 {
[%emt 0:00:08]} 1-0

[Event "44th Chess Olympiad Open 2022"]
[Site "Chennai"]
[Date "2022.07.30"]
[Round "2.78"]
[White "Myat Thiri Aung Kyaw"]
[Black "Mutabazi Hugues"]
[Result "1/2-1/2"]
[WhiteElo "2120"]
[BlackElo "1666"]
[Annotator "RC"]
[PlyCount "143"]
[EventDate "2022.??.??"]
[TimeControl "60"]

1. e4 {[%emt 0:00:28]} e5 {[%emt 0:00:12]} 2. Nf3 {[%emt 0:00:07]} Nf6 {
[%emt 0:00:05]} 3. Nc3 {[%emt 0:01:06]} Nc6 {[%emt 0:00:48]} 4. Bc4 {[%emt 0:
00:00]} Bc5 {[%emt 0:01:51]} 5. d3 {[%emt 0:00:32]} a6 {[%emt 0:02:12]} 6. Be3
{[%emt 0:01:58]} Ba7 {[%emt 0:04:38]} 7. Bxa7 {[%emt 0:00:45]} Rxa7 {[%emt 0:
00:00]} 8. a4 {[%emt 0:06:03]} d6 {[%emt 0:04:35]} 9. d4 {[%emt 0:11:57]} Bg4 {
[%emt 0:10:32]} 10. dxe5 {[%emt 0:01:29]} Nxe5 {[%emt 0:00:30]} 11. Be2 {
[%emt 0:01:05]} Nxf3+ {[%emt 0:07:12]} 12. gxf3 {[%emt 0:05:38]} Be6 {[%emt 0:
00:00]} 13. Qd2 {[%emt 0:05:03]} Ra8 {[%emt 0:05:40]} 14. Rd1 {[%emt 0:04:49]}
Bd7 {[%emt 0:02:53]} 15. Qe3 {[%emt 0:01:47]} Qe7 {[%emt 0:00:23]} 16. Rg1 {
[%emt 0:03:50]} g6 {[%emt 0:00:57]} 17. f4 {[%emt 0:12:43]} Bc6 {[%emt 0:04:26]
} 18. Rd4 {[%emt 0:00:48]} Rd8 {[%emt 0:03:32]} 19. b4 {[%emt 0:10:49]} b5 {
[%emt 0:08:08]} 20. axb5 {[%emt 0:00:00]} axb5 {[%emt 0:00:06]} 21. Bxb5 {
[%emt 0:00:00]} Bxb5 {[%emt 0:00:25]} 22. Nxb5 {[%emt 0:00:00]} Ra8 {[%emt 0:
00:00]} 23. Kd2 {[%emt 0:00:33]} O-O {[%emt 0:00:07]} 24. e5 {[%emt 0:02:15]}
dxe5 {[%emt 0:07:56]} 25. fxe5 {[%emt 0:00:31]} Nh5 {[%emt 0:00:14]} 26. Nc3 {
[%emt 0:08:35]} Rfd8 {[%emt 0:00:29]} 27. Rgg4 {[%emt 0:04:44]} Qxb4 {[%emt 0:
00:00]} 28. Qd3 {[%emt 0:03:52]} Rxd4 {[%emt 0:03:07]} 29. Rxd4 {[%emt 0:05:07]
} Qe7 {[%emt 0:02:59]} 30. f4 {[%emt 0:00:00]} Qh4 {[%emt 0:05:24]} 31. Ne2 {
[%emt 0:00:00]} Qxh2 {[%emt 0:00:40]} 32. Rd8+ {[%emt 0:07:39]} Rxd8 {[%emt 0:
00:00]} 33. Qxd8+ {[%emt 0:00:02]} Kg7 {[%emt 0:00:14]} 34. Qe7 {[%emt 0:00:33]
} Qg2 {[%emt 0:06:01]} 35. Ke3 {[%emt 0:00:54]} Qh3+ {[%emt 0:00:26]} 36. Kd2 {
[%emt 0:00:45]} Qf5 {[%emt 0:01:29]} 37. c3 {[%emt 0:00:32]} Kh6 {[%emt 0:00:
00]} 38. Qf8+ {[%emt 0:00:34]} Ng7 {[%emt 0:00:17]} 39. Ke3 {[%emt 0:00:35]}
Qh3+ {[%emt 0:01:25]} 40. Ke4 {[%emt 0:00:50]} Qf5+ {[%emt 0:00:27]} 41. Kd4 {
[%emt 0:30:27]} Qd7+ {[%emt 0:30:51]} 42. Ke3 {[%emt 0:00:09]} Qe8 {[%emt 0:00:
00]} 43. Qc5 {[%emt 0:00:00]} Ne6 {[%emt 0:00:00]} 44. Qd5 {[%emt 0:00:00]} c5
{[%emt 0:00:00]} 45. Qb7 {[%emt 0:00:00]} Kg7 {[%emt 0:00:00]} 46. Qg2 {
[%emt 0:00:00]} Qd8 {[%emt 0:00:00]} 47. f5 {[%emt 0:00:00]} Qg5+ {[%emt 0:00:
00]} 48. Qxg5 {[%emt 0:00:00]} Nxg5 {[%emt 0:00:00]} 49. Kf4 {[%emt 0:00:00]}
h6 {[%emt 0:00:00]} 50. Ng3 {[%emt 0:00:00]} Kf8 {[%emt 0:00:00]} 51. Nf1 {
[%emt 0:00:00]} gxf5 {[%emt 0:00:00]} 52. Kxf5 {[%emt 0:00:00]} Ke7 {[%emt 0:
00:00]} 53. Ne3 {[%emt 0:00:00]} Ne6 {[%emt 0:00:00]} 54. Nd5+ {[%emt 0:00:00]}
Kf8 {[%emt 0:00:00]} 55. Kf6 {[%emt 0:00:00]} h5 {[%emt 0:00:00]} 56. Kf5 {
[%emt 0:00:00]} Kg7 {[%emt 0:00:24]} 57. Ne7 {[%emt 0:03:39]} Kf8 {[%emt 0:00:
00]} 58. Nd5 {[%emt 0:00:00]} Kg7 {[%emt 0:00:30]} 59. Nf6 {[%emt 0:00:00]} h4
{[%emt 0:01:20]} 60. Kg4 {[%emt 0:00:00]} Kg6 {[%emt 0:00:08]} 61. Ng8 {
[%emt 0:00:08]} h3 {[%emt 0:04:22]} 62. Ne7+ {[%emt 0:00:05]} Kh6 {[%emt 0:00:
00]} 63. Kxh3 {[%emt 0:00:16]} Kg5 {[%emt 0:00:16]} 64. Kg3 {[%emt 0:00:07]}
Nf4 {[%emt 0:00:41]} 65. Kf3 {[%emt 0:00:24]} Ne6 {[%emt 0:00:36]} 66. Ke4 {
[%emt 0:00:08]} f6 {[%emt 0:01:12]} 67. Kd5 {[%emt 0:01:21]} Nf4+ {[%emt 0:00:
00]} 68. Kd6 {[%emt 0:00:26]} fxe5 {[%emt 0:00:29]} 69. Kxe5 {[%emt 0:00:18]}
Ne2 {[%emt 0:00:53]} 70. c4 {[%emt 0:00:44]} Nd4 {[%emt 0:00:38]} 71. Nc8 {
[%emt 0:00:38]} Nc2 {[%emt 0:00:27]} 72. Nd6 {[%emt 0:00:15]} 1/2-1/2

[Event "44th Chess Olympiad Open 2022"]
[Site "Chennai"]
[Date "2022.07.30"]
[Round "2.78"]
[White "Sai Han Thiha"]
[Black "Muheto, Dieudonne"]
[Result "1-0"]
[WhiteElo "1974"]
[BlackElo "1830"]
[Annotator "NA"]
[PlyCount "125"]
[EventDate "2022.??.??"]
[TimeControl "60"]

1. d4 {[%emt 0:00:02]} Nf6 {[%emt 0:02:49]} 2. Bf4 {[%emt 0:00:07]} g6 {
[%emt 0:01:02]} 3. Nf3 {[%emt 0:00:06]} Bg7 {[%emt 0:00:08]} 4. e3 {[%emt 0:00:
00]} d6 {[%emt 0:00:34]} 5. h3 {[%emt 0:04:11]} O-O {[%emt 0:00:13]} 6. Be2 {
[%emt 0:00:08]} b6 {[%emt 0:01:35]} 7. O-O {[%emt 0:00:09]} Bb7 {[%emt 0:00:12]
} 8. c4 {[%emt 0:00:09]} Nbd7 {[%emt 0:00:25]} 9. Nc3 {[%emt 0:00:10]} Ne4 {
[%emt 0:00:22]} 10. Nxe4 {[%emt 0:00:06]} Bxe4 {[%emt 0:00:09]} 11. Bg3 {
[%emt 0:00:07]} e5 {[%emt 0:00:52]} 12. c5 {[%emt 0:27:15]} bxc5 {[%emt 0:00:
00]} 13. dxe5 {[%emt 0:00:15]} Nxe5 {[%emt 0:02:57]} 14. Nxe5 {[%emt 0:05:42]}
dxe5 {[%emt 0:00:30]} 15. Qa4 {[%emt 0:09:32]} Qd5 {[%emt 0:02:47]} 16. Rfd1 {
[%emt 0:13:01]} Qc6 {[%emt 0:03:53]} 17. Bb5 {[%emt 0:00:52]} Qb7 {[%emt 0:00:
00]} 18. f3 {[%emt 0:08:59]} Bc2 {[%emt 0:10:58]} 19. Qxc2 {[%emt 0:01:53]}
Qxb5 {[%emt 0:00:14]} 20. e4 {[%emt 0:03:46]} Rfd8 {[%emt 0:01:55]} 21. b3 {
[%emt 0:00:33]} a5 {[%emt 0:01:04]} 22. Rac1 {[%emt 0:03:07]} Rxd1+ {[%emt 0:
00:00]} 23. Qxd1 {[%emt 0:00:10]} Re8 {[%emt 0:06:49]} 24. Qd5 {[%emt 0:01:11]}
Qe2 {[%emt 0:03:26]} 25. Rxc5 {[%emt 0:00:30]} Bh6 {[%emt 0:02:09]} 26. Bf2 {
[%emt 0:05:52]} Be3 {[%emt 0:01:42]} 27. Bxe3 {[%emt 0:00:02]} Qe1+ {[%emt 0:
00:00]} 28. Kh2 {[%emt 0:00:02]} Qxe3 {[%emt 0:00:28]} 29. Rxc7 {[%emt 0:00:42]
} Qf4+ {[%emt 0:01:29]} 30. Kh1 {[%emt 0:02:36]} Qf6 {[%emt 0:04:23]} 31. Qc6 {
[%emt 0:00:52]} Qd8 {[%emt 0:01:37]} 32. Qd7 {[%emt 0:00:52]} Qxd7 {[%emt 0:00:
00]} 33. Rxd7 {[%emt 0:00:01]} Rb8 {[%emt 0:02:36]} 34. Rd5 {[%emt 0:00:22]} a4
{[%emt 0:00:15]} 35. bxa4 {[%emt 0:00:02]} f6 {[%emt 0:01:05]} 36. Rd6 {
[%emt 0:05:50]} Ra8 {[%emt 0:01:36]} 37. Rxf6 {[%emt 0:00:06]} Rxa4 {[%emt 0:
00:00]} 38. Rd6 {[%emt 0:00:19]} Kf7 {[%emt 0:00:55]} 39. Rd7+ {[%emt 0:04:53]}
Kf6 {[%emt 0:04:28]} 40. Rxh7 {[%emt 0:00:03]} Rxa2 {[%emt 0:00:15]} 41. h4 {
[%emt 0:30:01]} g5 {[%emt 0:33:08]} 42. Rh6+ {[%emt 0:00:18]} Kf7 {[%emt 0:00:
00]} 43. hxg5 {[%emt 0:00:09]} Ra8 {[%emt 0:00:15]} 44. Rf6+ {[%emt 0:00:45]}
Ke7 {[%emt 0:00:27]} 45. Rb6 {[%emt 0:00:15]} Kf7 {[%emt 0:01:24]} 46. Kh2 {
[%emt 0:00:13]} Rg8 {[%emt 0:00:36]} 47. g6+ {[%emt 0:00:07]} Kg7 {[%emt 0:00:
00]} 48. Re6 {[%emt 0:00:17]} Kh6 {[%emt 0:03:28]} 49. Rxe5 {[%emt 0:01:16]}
Kxg6 {[%emt 0:00:12]} 50. g4 {[%emt 0:00:05]} Kf6 {[%emt 0:03:31]} 51. Rf5+ {
[%emt 0:00:03]} Kg6 {[%emt 0:00:22]} 52. Kg3 {[%emt 0:00:05]} Re8 {[%emt 0:00:
00]} 53. Ra5 {[%emt 0:00:11]} Re6 {[%emt 0:02:23]} 54. e5 {[%emt 0:00:16]} Rc6
{[%emt 0:00:55]} 55. Rd5 {[%emt 0:00:05]} Rc4 {[%emt 0:00:50]} 56. Rd6+ {
[%emt 0:00:12]} Kg7 {[%emt 0:01:05]} 57. f4 {[%emt 0:00:11]} Rc3+ {[%emt 0:00:
00]} 58. Kh4 {[%emt 0:00:07]} Rc7 {[%emt 0:00:19]} 59. f5 {[%emt 0:00:16]} Rc5
{[%emt 0:01:02]} 60. Rd7+ {[%emt 0:00:06]} Kf8 {[%emt 0:01:11]} 61. e6 {
[%emt 0:00:03]} Rb5 {[%emt 0:01:29]} 62. f6 {[%emt 0:00:30]} Rb8 {[%emt 0:00:
00]} 63. e7+ {[%emt 0:00:30]} 1-0

[Event "44th Chess Olympiad Open 2022"]
[Site "Chennai"]
[Date "2022.07.30"]
[Round "2.78"]
[White "Elvis Havyarimana"]
[Black "Zaw Ye Htut"]
[Result "1-0"]
[WhiteElo "1724"]
[BlackElo "1255"]
[Annotator "NA RC"]
[PlyCount "65"]
[EventDate "2022.??.??"]
[TimeControl "60"]

1. d4 {[%emt 0:00:03]} d5 {[%emt 0:00:00]} 2. e4 {[%emt 0:00:10]} dxe4 {
[%emt 0:00:09]} 3. Nc3 {[%emt 0:00:13]} Nf6 {[%emt 0:00:16]} 4. f3 {[%emt 0:00:
00]} exf3 {[%emt 0:00:58]} 5. Nxf3 {[%emt 0:00:08]} Bg4 {[%emt 0:00:11]} 6. h3
{[%emt 0:00:01]} Bh5 {[%emt 0:00:11]} 7. g4 {[%emt 0:00:08]} Bg6 {[%emt 0:00:
00]} 8. Ne5 {[%emt 0:00:08]} Nbd7 {[%emt 0:00:54]} 9. Nxg6 {[%emt 0:00:32]}
hxg6 {[%emt 0:00:09]} 10. Bg2 {[%emt 0:01:10]} c6 {[%emt 0:00:25]} 11. O-O {
[%emt 0:08:50]} e6 {[%emt 0:00:23]} 12. Qf3 {[%emt 0:05:08]} Qb6 {[%emt 0:00:
00]} 13. g5 {[%emt 0:06:21]} Nd5 {[%emt 0:06:36]} 14. Qxf7+ {[%emt 0:04:06]}
Kd8 {[%emt 0:00:21]} 15. Qxe6 {[%emt 0:01:26]} Qxd4+ {[%emt 0:00:30]} 16. Kh1 {
[%emt 0:01:12]} Bc5 {[%emt 0:01:36]} 17. Nxd5 {[%emt 0:00:33]} cxd5 {[%emt 0:
00:00]} 18. Bf4 {[%emt 0:03:33]} Re8 {[%emt 0:04:57]} 19. Qxg6 {[%emt 0:05:26]}
Re2 {[%emt 0:01:19]} 20. c3 {[%emt 0:04:56]} Qa4 {[%emt 0:06:10]} 21. Qxg7 {
[%emt 0:03:04]} Bf8 {[%emt 0:11:00]} 22. Qg8 {[%emt 0:01:35]} Qc2 {[%emt 0:00:
00]} 23. Qxd5 {[%emt 0:01:04]} Rc8 {[%emt 0:08:22]} 24. Rad1 {[%emt 0:01:42]}
Qa4 {[%emt 0:00:26]} 25. g6 {[%emt 0:02:22]} Qc6 {[%emt 0:03:55]} 26. Qg5+ {
[%emt 0:05:31]} Be7 {[%emt 0:12:10]} 27. Bxc6 {[%emt 0:00:47]} Bxg5 {[%emt 0:
00:00]} 28. Bxg5+ {[%emt 0:00:28]} Kc7 {[%emt 0:00:19]} 29. Bxd7 {[%emt 0:00:
00]} Rg8 {[%emt 0:02:04]} 30. Bg4 {[%emt 0:01:02]} Rxb2 {[%emt 0:01:24]} 31.
Rd7+ {[%emt 0:00:17]} Kc6 {[%emt 0:00:28]} 32. Rf6+ {[%emt 0:00:23]} Kc5 {
[%emt 0:00:34]} 33. Be3+ {[%emt 0:00:11]} 1-0

[Event "44th Chess Olympiad Open 2022"]
[Site "Chennai"]
[Date "2022.07.30"]
[Round "2.79"]
[White "Iclicki, Willy"]
[Black "Samuel Merhawi Gebrehiwet"]
[Result "*"]
[WhiteElo "1975"]
[BlackElo "1616"]
[Annotator "NA"]
[PlyCount "81"]
[EventDate "2022.??.??"]
[TimeControl "60"]

1. d4 {[%emt 0:00:04]} d5 {[%emt 0:00:35]} 2. c4 {[%emt 0:00:26]} e6 {[%emt 0:
00:00]} 3. Nc3 {[%emt 0:00:36]} Nf6 {[%emt 0:00:14]} 4. Nf3 {[%emt 0:04:56]}
Bb4 {[%emt 0:00:59]} 5. cxd5 {[%emt 0:03:30]} exd5 {[%emt 0:00:33]} 6. Bg5 {
[%emt 0:04:38]} O-O {[%emt 0:00:41]} 7. e3 {[%emt 0:04:58]} h6 {[%emt 0:01:29]}
8. Bxf6 {[%emt 0:01:17]} Qxf6 {[%emt 0:00:09]} 9. a3 {[%emt 0:00:57]} Bxc3+ {
[%emt 0:00:13]} 10. bxc3 {[%emt 0:00:04]} c5 {[%emt 0:01:00]} 11. Be2 {[%emt 0:
00:00]} Nc6 {[%emt 0:00:26]} 12. O-O {[%emt 0:00:20]} c4 {[%emt 0:02:15]} 13.
Rb1 {[%emt 0:08:59]} Qe7 {[%emt 0:02:32]} 14. Rb5 {[%emt 0:11:47]} Rd8 {
[%emt 0:00:55]} 15. Ne5 {[%emt 0:09:45]} Nxe5 {[%emt 0:01:37]} 16. dxe5 {
[%emt 0:00:05]} Qxe5 {[%emt 0:05:05]} 17. Bxc4 {[%emt 0:06:22]} Be6 {[%emt 0:
00:00]} 18. Be2 {[%emt 0:05:03]} Qxc3 {[%emt 0:04:04]} 19. Rxb7 {[%emt 0:02:21]
} Qxa3 {[%emt 0:00:12]} 20. Qd4 {[%emt 0:05:44]} Qd6 {[%emt 0:02:11]} 21. Rxa7
{[%emt 0:01:12]} Rxa7 {[%emt 0:00:22]} 22. Qxa7 {[%emt 0:00:07]} d4 {[%emt 0:
00:00]} 23. Qxd4 {[%emt 0:04:03]} Qxd4 {[%emt 0:00:12]} 24. exd4 {[%emt 0:00:
00]} Rxd4 {[%emt 0:00:10]} 25. Bf3 {[%emt 0:00:53]} g6 {[%emt 0:00:28]} 26. g3
{[%emt 0:00:17]} h5 {[%emt 0:00:19]} 27. h4 {[%emt 0:00:32]} Kg7 {[%emt 0:00:
00]} 28. Kg2 {[%emt 0:00:37]} Kh6 {[%emt 0:01:07]} 29. Re1 {[%emt 0:01:37]} Rd3
{[%emt 0:00:29]} 30. Re5 {[%emt 0:04:02]} Kg7 {[%emt 0:01:15]} 31. Ra5 {
[%emt 0:00:24]} Rc3 {[%emt 0:01:27]} 32. Bd5 {[%emt 0:02:43]} Bxd5+ {[%emt 0:
00:00]} 33. Rxd5 {[%emt 0:00:03]} Kf6 {[%emt 0:00:28]} 34. Rb5 {[%emt 0:00:31]}
Rd3 {[%emt 0:00:19]} 35. Ra5 {[%emt 0:01:09]} Ke6 {[%emt 0:00:33]} 36. Ra7 {
[%emt 0:02:36]} f6 {[%emt 0:00:34]} 37. Ra6+ {[%emt 0:00:17]} Ke5 {[%emt 0:00:
00]} 38. Ra5+ {[%emt 0:01:54]} Rd5 {[%emt 0:04:53]} 39. Ra4 {[%emt 0:00:39]}
Kf5 {[%emt 0:01:38]} 40. Rf4+ {[%emt 0:00:48]} Ke5 {[%emt 0:00:08]} 41. Ra4 {
[%emt 0:00:18]} *